bitfinex/quotes_BTCUSD_20240819
["timestamp","ask_amount","ask_price","bid_price","bid_amount"]
[1724063945663,0.005,58223.0,58222.0,1.89291308]
[1724063946469,0.003,58223.0,58222.0,1.89291308]
[1724063946688,0.1462,58228.0,58227.0,1.20619]
[1724063949094,0.1462,58228.0,58227.0,1.20819]
[1724063950108,0.1462,58228.0,58227.0,1.21419]
[1724063950329,0.1462,58228.0,58227.0,2.71419]
[1724063950772,0.14612906,58228.0,58227.0,2.71419]
[1724063952379,0.14612906,58228.0,58227.0,0.869707]
[1724063952693,0.14612906,58228.0,58227.0,0.868707]
[1724063953328,0.14612906,58228.0,58227.0,0.862707]
[1724063953744,0.14612906,58228.0,58227.0,0.865707]
[1724063954996,0.14703217,58228.0,58227.0,0.865707]
[1724063955410,0.0045942,58237.0,58231.0,0.171729]
[1724063955411,0.171721,58234.0,58231.0,0.171729]
[1724063955823,0.343433,58236.0,58229.0,0.343466]
[1724063956027,0.343439,58235.0,58230.0,0.171731]
[1724063956240,0.171722,58234.0,58231.0,0.171729]
[1724063956444,0.34432911,58237.0,58231.0,0.171729]
[1724063956445,0.171719,58235.0,58231.0,0.171729]
[1724063957067,0.00090311,58237.0,58231.0,0.43292588]
[1724063957269,0.004,58234.0,58233.0,0.171722]
[1724063957472,0.02044343,58234.0,58233.0,0.171722]
[1724063957678,0.01844343,58234.0,58233.0,0.171722]
[1724063957878,0.002,58234.0,58233.0,0.171722]
[1724063958093,0.009,58235.0,58233.0,0.171722]
[1724063958239,0.1371,58234.0,58232.0,0.171726]
[1724063958590,0.1509,58234.0,58233.0,0.171721]
[1724063959260,0.1509,58234.0,58233.0,0.172721]
[1724063959862,0.1509,58234.0,58233.0,0.516168]
[1724063960537,0.1469,58234.0,58233.0,0.9802238]
[1724063960742,0.1509,58234.0,58233.0,1.206062]
[1724063960935,0.004,58234.0,58233.0,1.206062]
[1724063961143,0.00090311,58237.0,58236.0,1.206005]
[1724063961353,0.00090311,58237.0,58236.0,1.442205]
[1724063961561,0.00090311,58237.0,58236.0,1.785635]
[1724063962613,0.00090311,58237.0,58236.0,3.285635]
[1724063963015,0.00290311,58237.0,58236.0,3.285635]
[1724063963658,0.00290311,58237.0,58236.0,3.36414905]
[1724063963864,0.00290311,58237.0,58236.0,3.36514905]
[1724063966719,0.00290311,58237.0,58236.0,3.12894905]
[1724063968386,0.08020311,58237.0,58236.0,3.050435]
[1724063972097,0.14650311,58237.0,58236.0,3.050435]
[1724063975294,0.14650311,58237.0,58236.0,2.707005]
[1724063976821,0.14650311,58237.0,58236.0,1.207005]
[1724063977267,0.14650311,58237.0,58236.0,1.204005]
[1724063977487,0.14650311,58237.0,58236.0,0.859575]
[1724063977764,0.14650311,58237.0,58236.0,0.001]
[1724063977971,0.33834758,58237.0,58236.0,0.001]
[1724063978598,0.171721,58234.0,58231.0,0.171729]
[1724063978806,0.1446,58232.0,58230.0,0.171732]
[1724063979024,0.14829109,58232.0,58231.0,0.171728]
[1724063979234,0.1366,58231.0,58230.0,0.171732]
[1724063979439,0.1366,58230.0,58229.0,0.171735]
[1724063979649,0.15304451,58230.0,58229.0,0.171735]
[1724063980497,0.1366,58230.0,58229.0,0.171735]
[1724063980702,0.15304447,58230.0,58229.0,0.171735]
[1724063981355,0.15304447,58230.0,58228.0,0.03382783]
[1724063981356,0.1402,58229.0,58228.0,0.03382783]
[1724063981571,0.1402,58229.0,58228.0,0.20556583]
[1724063981790,0.15664488,58229.0,58228.0,0.20556583]
[1724063982216,0.1402,58229.0,58228.0,0.20556583]
[1724063982623,0.1422,58229.0,58228.0,0.20556583]
[1724063983300,0.1422,58229.0,58228.0,0.54904283]
[1724063983724,0.1422,58229.0,58228.0,0.89651983]
[1724063984168,0.1422,58229.0,58228.0,0.89751983]
[1724063986084,0.1422,58229.0,58228.0,0.89351983]
[1724063986297,0.1422,58229.0,58228.0,0.89551983]
[1724063987976,0.1422,58229.0,58228.0,0.89751983]
[1724063988386,0.1422,58229.0,58228.0,1.24099683]
[1724063988619,0.1422,58229.0,58228.0,1.39944551]
[1724063989248,0.002,58229.0,58228.0,1.74292251]
[1724063990095,0.00290311,58229.0,58228.0,3.24292251]
[1724063990597,0.00290311,58229.0,58228.0,3.43327705]
[1724063990812,0.00290311,58229.0,58228.0,3.79365405]
[1724063991029,0.00290311,58229.0,58228.0,4.31058703]
[1724063991245,1e-08,58229.0,58228.0,4.43862602]
[1724063991455,1e-08,58229.0,58228.0,4.41304297]
[1724063991677,1e-08,58229.0,58228.0,4.38743956]
[1724063991912,1e-08,58229.0,58228.0,4.38743802]
[1724063992119,1e-08,58229.0,58228.0,4.38843802]
[1724063992329,1e-08,58229.0,58228.0,4.01756683]
[1724063992330,0.00100001,58229.0,58228.0,4.01756683]
[1724063992536,0.00054147,58229.0,58228.0,4.22614505]
[1724063992751,0.00054147,58229.0,58228.0,4.2433338]
[1724063993159,0.00054147,58229.0,58228.0,4.64983349]
[1724063993577,0.00054147,58229.0,58228.0,4.24334976]
[1724063994612,0.00054147,58229.0,58228.0,4.19209698]
[1724063995232,0.00054147,58229.0,58228.0,4.19211637]
[1724063997312,0.00054147,58229.0,58228.0,3.99796769]
[1724063997731,0.00054147,58229.0,58228.0,3.96189412]
[1724063997938,0.00054147,58229.0,58228.0,3.99797326]
[1724063998379,0.00054147,58229.0,58228.0,4.07485174]
[1724063999242,0.00054147,58229.0,58228.0,4.07585221]
[1724063999448,0.00054147,58229.0,58228.0,4.24740675]
[1724063999908,0.00090311,58237.0,58236.0,0.004]
[1724064000098,0.00090311,58237.0,58236.0,2.31751954]
[1724064000324,0.00090311,58237.0,58236.0,2.35459337]
[1724064000565,0.009031,58246.0,58245.0,1.892573]
[1724064000770,0.009031,58246.0,58245.0,2.2871089]
[1724064000977,0.009031,58246.0,58245.0,4.22206687]
[1724064001599,0.009031,58246.0,58245.0,4.19640775]
[1724064001822,0.009031,58246.0,58245.0,4.2197298]
[1724064002029,0.010031,58246.0,58245.0,4.2327298]
[1724064002453,0.010031,58246.0,58245.0,3.78922342]
[1724064002884,0.010031,58246.0,58245.0,3.39614642]
[1724064003127,0.010031,58246.0,58245.0,3.063196]
[1724064003128,0.073831,58246.0,58245.0,3.063196]
[1724064003337,0.072831,58246.0,58245.0,1.205819]
[1724064003778,0.072831,58246.0,58245.0,1.219819]
[1724064004006,0.072831,58246.0,58245.0,1.205819]
[1724064004454,0.072831,58246.0,58245.0,1.226819]
[1724064004662,0.072831,58246.0,58245.0,1.219819]
[1724064004872,0.072831,58246.0,58245.0,1.212819]
[1724064005091,0.072831,58246.0,58245.0,0.865442]
[1724064005298,0.072831,58246.0,58245.0,0.526065]
[1724064005299,0.150431,58246.0,58245.0,0.526065]
[1724064005510,0.150431,58246.0,58245.0,0.011]
[1724064005780,0.32580709,58246.0,58245.0,0.011]
[1724064005981,0.15412209,58246.0,58245.0,0.011]
[1724064006186,0.32580709,58246.0,58245.0,0.007]
[1724064006403,0.15412209,58246.0,58242.0,0.171697]
[1724064006608,0.0792,58244.0,58239.0,0.002]
[1724064006819,0.0792,58242.0,58240.0,0.343405]
[1724064007031,0.0792,58242.0,58241.0,0.1717]
[1724064007240,0.0792,58242.0,58241.0,0.5151]
[1724064007457,0.0792,58242.0,58241.0,0.8605]
[1724064007688,0.0792,58242.0,58241.0,0.8625]
[1724064007901,0.0792,58242.0,58241.0,0.8585]
[1724064008321,0.0792,58242.0,58241.0,0.8605]
[1724064008747,0.0802,58242.0,58241.0,0.8605]
[1724064009400,0.0792,58242.0,58241.0,0.8605]
[1724064009643,0.0822,58242.0,58241.0,0.8605]
[1724064009849,0.0792,58242.0,58241.0,0.8605]
[1724064010060,0.0792,58242.0,58241.0,0.8625]
[1724064010478,0.0802,58242.0,58241.0,0.8625]
[1724064011778,0.0802,58242.0,58240.0,0.171701]
[1724064011989,0.0802,58242.0,58241.0,0.1717]
[1724064012202,0.0802,58242.0,58241.0,0.5151]
[1724064012871,0.1441,58242.0,58241.0,0.5151]
[1724064013101,0.1451,58242.0,58241.0,0.5171]
[1724064013327,0.1441,58242.0,58241.0,0.5171]
[1724064013575,0.1451,58242.0,58241.0,0.5151]
[1724064013989,0.1451,58242.0,58241.0,0.9810927]
[1724064014223,0.1451,58242.0,58241.0,0.8605]
[1724064016169,0.1451,58242.0,58241.0,0.8625]
[1724064016999,0.1451,58242.0,58241.0,0.8605]
[1724064017211,0.1451,58242.0,58241.0,0.1717]
[1724064017441,0.1451,58242.0,58241.0,0.5151]
[1724064017666,0.1451,58242.0,58238.0,1.500821]
[1724064017667,0.657818,58239.0,58238.0,0.000821]
[1724064017878,1.01767087,58239.0,58238.0,0.000821]
[1724064018088,1.46108287,58239.0,58238.0,0.000821]
[1724064019965,1.46108287,58239.0,58238.0,0.001821]
[1724064020173,1.46408287,58239.0,58238.0,0.002821]
[1724064020379,1.12067087,58239.0,58238.0,0.002821]
[1724064021494,1.12067087,58239.0,58238.0,0.001821]
[1724064021495,0.43384687,58239.0,58238.0,0.001821]
[1724064021702,0.429406,58239.0,58238.0,0.002821]
[1724064021913,0.4622912,58239.0,58238.0,0.002821]
[1724064022121,0.4622912,58239.0,58238.0,0.17453]
[1724064022122,0.26214248,58239.0,58238.0,0.17453]
[1724064022336,0.27858519,58239.0,58238.0,0.002821]
[1724064022577,0.27858519,58239.0,58238.0,0.520948]
[1724064022578,0.17514248,58239.0,58238.0,0.520948]
[1724064022778,0.17514248,58239.0,58238.0,0.517948]
[1724064022997,0.16214248,58239.0,58238.0,0.517948]
[1724064023406,0.17214248,58239.0,58238.0,0.518948]
[1724064023612,0.16914248,58239.0,58238.0,0.517948]
[1724064024035,0.16914248,58239.0,58238.0,0.861366]
[1724064024249,0.16914248,58239.0,58238.0,0.517948]
[1724064025068,0.16914248,58239.0,58238.0,0.861366]
[1724064025271,0.16914248,58239.0,58238.0,0.864366]
[1724064025272,0.10814248,58239.0,58238.0,0.864366]
[1724064025690,0.04044248,58239.0,58238.0,0.865366]
[1724064026098,0.02644248,58239.0,58238.0,0.864366]
[1724064026302,0.03544248,58239.0,58238.0,0.865366]
[1724064028278,0.03544248,58239.0,58238.0,0.861366]
[1724064028279,0.019,58239.0,58238.0,0.861366]
[1724064028688,0.019,58239.0,58238.0,0.863366]
[1724064030242,0.019,58239.0,58238.0,0.861366]
[1724064030819,0.019,58239.0,58238.0,0.863366]
[1724064031527,0.019,58239.0,58238.0,0.88307429]
[1724064031853,0.019,58239.0,58238.0,1.22649229]
[1724064032059,0.019,58239.0,58238.0,1.206784]
[1724064032885,0.019,58239.0,58238.0,1.208784]
[1724064038802,0.01990311,58239.0,58238.0,1.208784]
[1724064040476,0.00990311,58239.0,58238.0,1.207784]
[1724064040655,0.00990311,58239.0,58238.0,1.37933854]
[1724064040856,0.01790311,58239.0,58238.0,1.38033854]
[1724064041058,0.00890311,58239.0,58238.0,1.37933854]
[1724064041263,0.00890311,58239.0,58238.0,1.37833854]
[1724064041264,0.00390311,58239.0,58238.0,1.37833854]
[1724064041666,0.00790311,58239.0,58238.0,1.37833854]
[1724064041971,0.01090311,58239.0,58238.0,1.37833854]
[1724064042224,0.00490311,58239.0,58238.0,1.37833854]
[1724064042918,0.00490311,58239.0,58238.0,1.03292054]
[1724064043121,0.00490311,58239.0,58238.0,0.861366]
[1724064043348,0.00090311,58239.0,58238.0,0.861366]
[1724064043563,0.00190311,58239.0,58238.0,0.859366]
[1724064043766,0.07880311,58239.0,58238.0,0.859366]
[1724064043979,0.13900311,58239.0,58238.0,0.000821]
[1724064044185,1.01397533,58239.0,58238.0,0.000821]
[1724064044586,1.07951479,58239.0,58238.0,0.000821]
[1724064044791,1.42292679,58239.0,58238.0,0.001821]
[1724064044999,1.48312127,58239.0,58238.0,0.000821]
[1724064045206,1.48312127,58239.0,58238.0,0.001821]
[1724064045419,1.48312127,58239.0,58228.0,0.03382783]
[1724064045420,0.858677,58229.0,58228.0,0.03382783]
[1724064045625,1.344248,58229.0,58228.0,0.03382783]
[1724064045841,1.42626052,58229.0,58228.0,0.03382783]
[1724064046462,1.08278952,58229.0,58228.0,0.03382783]
[1724064046671,1.01722379,58229.0,58228.0,0.03382783]
[1724064047323,1.02922379,58229.0,58228.0,0.03482783]
[1724064047737,1.43827485,58229.0,58228.0,0.03482783]
[1724064047937,1.10880385,58229.0,58228.0,0.03582783]
[1724064048155,1.09480385,58229.0,58228.0,0.03482783]
[1724064048361,1.02922522,58229.0,58228.0,0.03482783]
[1724064048570,1.54293637,58229.0,58228.0,0.03582783]
[1724064048769,1.65989439,58229.0,58228.0,0.03582783]
[1724064049393,1.54293637,58229.0,58228.0,0.03582783]
[1724064049612,1.54393637,58229.0,58228.0,0.03582783]
[1724064049815,1.20046537,58229.0,58228.0,0.03582783]
[1724064050239,1.54393637,58229.0,58228.0,0.03582783]
[1724064050450,1.38769618,58229.0,58228.0,0.03582783]
[1724064051934,1.371248,58229.0,58228.0,0.03582783]
[1724064052144,1.38769626,58229.0,58228.0,0.03582783]
[1724064052558,1.04422526,58229.0,58228.0,0.03582783]
[1724064052970,1.48769626,58229.0,58228.0,0.03582783]
[1724064054037,1.6592508,58229.0,58228.0,0.03582783]
[1724064054666,2.0027218,58229.0,58228.0,0.03582783]
[1724064054871,2.0027218,58229.0,58217.0,0.000821]
[1724064054872,0.99774,58218.0,58217.0,0.000821]
[1724064055083,0.67065226,58218.0,58217.0,0.000821]
[1724064055725,0.99774,58218.0,58217.0,0.000821]
[1724064056140,1.00574,58218.0,58217.0,0.001821]
[1724064056347,1.01374,58218.0,58217.0,0.002821]
[1724064056767,1.03019029,58218.0,58217.0,0.002821]
[1724064058395,0.68665429,58218.0,58217.0,0.002821]
[1724064059413,0.670204,58218.0,58217.0,0.002821]
[1724064059819,0.68665428,58218.0,58217.0,0.002821]
[1724064060432,0.670204,58218.0,58217.0,0.002821]
[1724064061629,0.1549,58218.0,58217.0,0.002821]
[1724064061832,0.0947,58218.0,58217.0,0.174592]
[1724064062058,0.0947,58218.0,58217.0,0.002821]
[1724064062417,0.09839109,58218.0,58217.0,0.002821]
[1724064062851,0.0947,58218.0,58217.0,0.002821]
[1724064063050,0.0947,58218.0,58217.0,0.174592]
[1724064063251,0.0947,58218.0,58217.0,0.002821]
[1724064063931,0.0947,58218.0,58217.0,0.175592]
[1724064064087,0.0947,58218.0,58217.0,0.174592]
[1724064064281,0.0947,58218.0,58217.0,0.002821]
[1724064064815,0.0947,58218.0,58217.0,0.174592]
[1724064065050,0.016,58218.0,58217.0,0.920176]
[1724064065256,0.016,58218.0,58217.0,1.263718]
[1724064065461,0.016,58218.0,58217.0,1.60926]
[1724064065662,0.016,58218.0,58217.0,1.79771454]
[1724064065865,0.016,58218.0,58217.0,1.96926908]
[1724064066054,0.016,58218.0,58217.0,3.29771454]
[1724064066193,0.008,58218.0,58217.0,3.29671454]
[1724064066757,0.009,58218.0,58217.0,3.29671454]
[1724064067170,0.001,58218.0,58217.0,3.29571454]
[1724064067674,0.002,58218.0,58217.0,3.29671454]
[1724064067876,0.001,58218.0,58217.0,3.30602144]
[1724064068086,0.001,58218.0,58217.0,3.30702144]
[1724064068714,0.002,58218.0,58217.0,3.30702144]
[1724064069329,0.001,58218.0,58217.0,3.30702144]
[1724064069962,0.002,58218.0,58217.0,3.30702144]
[1724064073307,0.002,58218.0,58217.0,3.47857598]
[1724064073713,0.0811,58228.0,58227.0,1.20619]
[1724064074706,0.08052562,58228.0,58227.0,1.20619]
[1724064074906,0.08142873,58228.0,58227.0,1.20619]
[1724064075540,0.08242873,58228.0,58227.0,1.20719]
[1724064081231,0.00190311,58228.0,58227.0,1.77872754]
[1724064081893,0.00190311,58228.0,58227.0,3.28879504]
[1724064082303,0.00090311,58228.0,58227.0,3.28779504]
[1724064082505,0.00090311,58228.0,58227.0,3.45934958]
[1724064082698,0.00190311,58228.0,58227.0,3.46134958]
[1724064083032,0.00290311,58228.0,58227.0,3.46134958]
[1724064084185,0.00290311,58228.0,58227.0,3.45128208]
[1724064084395,0.00290311,58228.0,58227.0,1.20819]
[1724064084590,0.08190311,58228.0,58227.0,1.20819]
[1724064085758,0.14780311,58228.0,58227.0,1.20819]
[1724064085969,0.14780311,58228.0,58227.0,0.517224]
[1724064086168,0.31954111,58228.0,58227.0,0.002]
[1724064086369,0.3232322,58228.0,58227.0,0.002]
[1724064086571,0.1514942,58228.0,58227.0,0.002]
[1724064087008,0.1514942,58228.0,58227.0,0.174562]
[1724064087495,0.1504942,58228.0,58227.0,0.172562]
[1724064087904,0.1514942,58228.0,58227.0,0.172562]
[1724064088087,0.1534942,58228.0,58227.0,0.000821]
[1724064088515,0.14980311,58228.0,58227.0,0.519045]
[1724064089720,0.14980311,58228.0,58227.0,0.173562]
[1724064089925,0.00490311,58228.0,58227.0,0.594045]
[1724064090127,0.00490311,58228.0,58227.0,1.207011]
[1724064090531,0.08250311,58228.0,58227.0,1.207011]
[1724064090893,0.00290311,58228.0,58227.0,1.3513321]
[1724064091178,0.00090311,58228.0,58227.0,1.207011]
[1724064091533,0.00090311,58228.0,58227.0,1.210011]
[1724064092349,0.00090311,58228.0,58227.0,1.206011]
[1724064092576,0.00090311,58228.0,58227.0,0.862528]
[1724064092922,0.08400311,58228.0,58227.0,0.864528]
[1724064093136,0.0876942,58228.0,58227.0,0.519045]
[1724064093761,0.0864442,58228.0,58227.0,0.519045]
[1724064093973,0.08275311,58228.0,58227.0,0.003821]
[1724064095007,0.65846811,58228.0,58227.0,0.003821]
[1724064095214,0.31499111,58228.0,58227.0,0.003821]
[1724064095417,0.6641592,58228.0,58227.0,0.000821]
[1724064095588,1.0096362,58228.0,58227.0,0.000821]
[1724064096361,1.3511132,58228.0,58227.0,0.000821]
[1724064096765,1.41666504,58228.0,58227.0,0.000821]
[1724064097023,1.41466504,58228.0,58227.0,0.000821]
[1724064097355,1.42266504,58228.0,58227.0,0.000821]
[1724064097562,1.41466504,58228.0,58227.0,0.000821]
[1724064097791,1.42266504,58228.0,58227.0,0.000821]
[1724064098014,1.43366504,58228.0,58227.0,0.000821]
[1724064098866,1.42566504,58228.0,58227.0,0.000821]
[1724064099075,1.43666504,58228.0,58227.0,0.000821]
[1724064100629,1.43756815,58228.0,58227.0,0.000821]
[1724064102375,1.36701631,58228.0,58227.0,0.000821]
[1724064104288,2.12571657,58228.0,58227.0,0.000821]
[1724064104290,1.202355,58219.0,58218.0,0.003]
[1724064104535,1.77876461,58219.0,58218.0,0.003]
[1724064104980,1.90446974,58219.0,58218.0,0.003]
[1724064105492,1.87873351,58219.0,58218.0,0.003]
[1724064105754,1.85864407,58219.0,58218.0,0.003]
[1724064106275,1.87264407,58219.0,58218.0,0.003]
[1724064106555,1.97540661,58219.0,58218.0,0.003]
[1724064106822,2.33374759,58219.0,58218.0,0.003]
[1724064107066,2.25398505,58219.0,58218.0,0.003]
[1724064107582,2.3940248,58219.0,58218.0,0.003]
[1724064107804,2.25006105,58219.0,58218.0,0.003]
[1724064108214,2.26406105,58219.0,58218.0,0.003]
[1724064108413,2.42161559,58219.0,58218.0,0.003]
[1724064108834,2.43561559,58219.0,58218.0,0.003]
[1724064109225,2.39234494,58219.0,58218.0,0.003]
[1724064110209,2.36665982,58219.0,58218.0,0.003]
[1724064110813,2.36666072,58219.0,58218.0,0.003]
[1724064111210,2.26406105,58219.0,58218.0,0.003]
[1724064111413,2.34098492,58219.0,58218.0,0.003]
[1724064112247,2.31533047,58219.0,58218.0,0.003]
[1724064112543,2.26406105,58219.0,58218.0,0.003]
[1724064112744,2.43561559,58219.0,58218.0,0.003]
[1724064113290,2.48688278,58219.0,58218.0,0.003821]
[1724064113676,2.48778589,58219.0,58218.0,0.003821]
[1724064114362,2.37095963,58219.0,58218.0,0.003821]
[1724064114563,2.19940509,58219.0,58218.0,0.003821]
[1724064116983,1.85587509,58219.0,58218.0,0.003821]
[1724064118174,0.664627,58204.0,58203.0,0.000821]
[1724064118377,1.008245,58204.0,58203.0,0.000821]
[1724064118602,1.351863,58204.0,58203.0,0.000821]
[1724064119861,1.285263,58204.0,58203.0,0.000821]
[1724064119992,0.863045,58204.0,58203.0,0.000821]
[1724064120196,0.867045,58204.0,58203.0,0.001821]
[1724064120407,0.867045,58204.0,58203.0,0.000821]
[1724064120767,0.863045,58204.0,58203.0,0.000821]
[1724064120975,0.877045,58204.0,58203.0,0.000821]
[1724064121187,0.859045,58204.0,58203.0,0.001821]
[1724064121387,0.859045,58204.0,58203.0,0.000821]
[1724064121597,0.887045,58204.0,58203.0,0.001821]
[1724064122007,0.873045,58204.0,58203.0,0.001821]
[1724064122222,0.873045,58204.0,58203.0,0.000821]
[1724064122428,0.887045,58204.0,58203.0,0.000821]
[1724064122974,0.028,58204.0,58203.0,0.003821]
[1724064123171,0.028,58204.0,58203.0,0.520257]
[1724064123538,0.028,58204.0,58203.0,0.004821]
[1724064123654,0.028,58204.0,58203.0,0.176633]
[1724064124309,0.014,58204.0,58203.0,0.520257]
[1724064124529,0.006,58204.0,58203.0,0.172633]
[1724064124715,0.016,58204.0,58203.0,0.172633]
[1724064125782,0.016,58204.0,58196.0,0.24640098]
[1724064125783,0.001,58197.0,58187.0,0.000821]
[1724064125985,0.0771,58196.0,58187.0,0.000821]
[1724064126143,0.08079109,58196.0,58187.0,0.000821]
[1724064126554,0.343681,58194.0,58187.0,0.000821]
[1724064126745,0.0771,58196.0,58187.0,0.000821]
[1724064126923,0.343693,58192.0,58187.0,0.000821]
[1724064127126,0.343693,58192.0,58187.0,0.001821]
[1724064127127,0.171854,58189.0,58187.0,0.001821]
[1724064127509,0.343698,58191.0,58187.0,0.001821]
[1724064127744,0.515569,58188.0,58187.0,0.001821]
[1724064128148,0.515569,58188.0,58187.0,0.000821]
[1724064129345,0.859282,58188.0,58187.0,0.000821]
[1724064129758,0.859282,58188.0,58187.0,0.001821]
[1724064129961,0.859282,58188.0,58187.0,0.000821]
[1724064130167,0.867282,58188.0,58187.0,0.000821]
[1724064130383,0.867282,58188.0,58187.0,0.001821]
[1724064130384,0.874282,58188.0,58187.0,0.001821]
[1724064134831,0.015,58188.0,58187.0,0.024621]
[1724064135032,0.015,58188.0,58187.0,1.88094962]
[1724064135288,0.015,58188.0,58187.0,2.28323664]
[1724064135472,0.015,58188.0,58187.0,2.62695564]
[1724064135654,0.007,58188.0,58187.0,2.62695564]
[1724064136220,0.009,58188.0,58187.0,2.61747254]
[1724064136812,0.002,58188.0,58187.0,2.61647254]
[1724064137016,0.002,58188.0,58187.0,2.62247254]
[1724064137215,0.003,58188.0,58187.0,2.62247254]
[1724064137411,0.001,58188.0,58187.0,2.61647254]
[1724064137612,0.001,58188.0,58187.0,2.62347254]
[1724064137793,0.003,58188.0,58187.0,2.62447254]
[1724064137993,0.003,58188.0,58187.0,2.62747254]
[1724064138180,0.003,58188.0,58187.0,2.62447254]
[1724064138374,0.003,58188.0,58187.0,3.13974608]
[1724064138624,0.003,58188.0,58187.0,2.79602708]
[1724064138800,0.003,58188.0,58187.0,2.62447254]
[1724064139428,0.003,58188.0,58187.0,2.96819154]
[1724064140600,0.003,58188.0,58187.0,2.96919154]
[1724064140804,0.003,58188.0,58187.0,2.96819154]
[1724064141451,0.003,58188.0,58187.0,2.96919154]
[1724064142063,0.003,58188.0,58187.0,3.13974608]
[1724064142422,0.003,58188.0,58187.0,3.14074608]
[1724064142630,0.003,58188.0,58187.0,3.13974608]
[1724064142809,0.003,58188.0,58187.0,3.14274608]
[1724064143064,0.003,58188.0,58187.0,2.97119154]
[1724064143268,0.003,58188.0,58187.0,3.47601088]
[1724064143684,0.51177509,58203.0,58202.0,1.202705]
[1724064143890,0.51177509,58203.0,58202.0,1.287105]
[1724064144096,0.17178,58214.0,58210.0,0.171791]
[1724064144299,0.171782,58213.0,58211.0,1.5]
[1724064144477,0.171785,58212.0,58209.0,0.20181108]
[1724064144916,0.171785,58212.0,58209.0,0.171794]
[1724064145536,0.17478,58214.0,58210.0,0.17179]
[1724064145950,0.003,58214.0,58209.0,0.343585]
[1724064146159,0.003,58214.0,58213.0,0.515347]
[1724064146367,0.003,58214.0,58212.0,0.171785]
[1724064146764,0.171775,58216.0,58212.0,0.171785]
[1724064147105,0.171775,58216.0,58213.0,0.171782]
[1724064147310,0.07680311,58218.0,58213.0,0.171782]
[1724064147526,0.171771,58217.0,58214.0,0.171779]
[1724064147736,0.07680311,58218.0,58215.0,0.343553]
[1724064147958,0.07680311,58218.0,58217.0,0.171771]
[1724064148136,0.001,58216.0,58215.0,0.171776]
[1724064148497,0.07680311,58218.0,58215.0,0.171776]
[1724064148730,0.07980311,58218.0,58216.0,0.171772]
[1724064148974,0.25157111,58218.0,58215.0,0.171776]
[1724064149186,0.25157111,58218.0,58214.0,0.171779]
[1724064149518,0.07980311,58218.0,58213.0,0.343561]
[1724064149722,0.25157211,58218.0,58214.0,0.171779]
[1724064150378,0.25157211,58218.0,58213.0,0.4122744]
[1724064150379,0.24857211,58218.0,58213.0,0.4122744]
[1724064150618,0.25057211,58218.0,58214.0,0.24736404]
[1724064150875,0.001,58216.0,58214.0,0.24736404]
[1724064151318,0.171772,58217.0,58213.0,0.171782]
[1724064151753,0.171774,58216.0,58212.0,0.171785]
[1724064152357,0.001,58216.0,58213.0,0.171781]
[1724064152906,0.001,58216.0,58212.0,0.171783]
[1724064153104,0.001,58216.0,58210.0,0.343578]
[1724064153105,0.001,58216.0,58213.0,0.171782]
[1724064153471,0.001,58216.0,58214.0,0.001]
[1724064153686,0.001,58216.0,58208.0,0.343593]
[1724064153887,0.001,58216.0,58192.0,0.001]
[1724064153888,0.343589,58209.0,58198.0,0.0848]
[1724064154093,0.00369109,58208.0,58198.0,0.09495552]
[1724064154300,0.171817,58202.0,58197.0,0.1]
[1724064154513,0.00369109,58208.0,58197.0,0.1]
[1724064154514,0.0797,58201.0,58198.0,0.343653]
[1724064154648,0.0797,58201.0,58199.0,0.343648]
[1724064154849,0.0797,58201.0,58200.0,0.515463]
[1724064156594,0.0797,58201.0,58200.0,0.171821]
[1724064156834,0.0807,58201.0,58200.0,0.171821]
[1724064157086,0.0797,58201.0,58200.0,0.171821]
[1724064157319,0.0797,58201.0,58200.0,0.176821]
[1724064157568,0.0807,58201.0,58200.0,0.183821]
[1724064157804,0.0807,58201.0,58200.0,0.527463]
[1724064158295,0.0807,58201.0,58200.0,0.183821]
[1724064159315,0.0807,58201.0,58200.0,0.527463]
[1724064160761,0.0807,58201.0,58200.0,0.183821]
[1724064161169,0.0807,58201.0,58200.0,0.012]
[1724064161368,0.0807,58201.0,58200.0,0.183821]
[1724064161571,0.0807,58201.0,58200.0,0.527463]
[1724064162192,0.0807,58201.0,58200.0,0.012]
[1724064162193,0.1429,58201.0,58200.0,0.012]
[1724064162398,0.658354,58201.0,58200.0,0.012]
[1724064164067,1.00199,58201.0,58200.0,0.012]
[1724064164271,1.345626,58201.0,58200.0,0.012]
[1724064164902,1.345626,58201.0,58200.0,0.007]
[1724064165321,0.0819,58194.0,58188.0,0.000822]
[1724064165501,0.0672,58201.0,58188.0,0.000822]
[1724064165502,0.51556,58189.0,58188.0,0.000822]
[1724064165733,0.171853,58189.0,58188.0,0.000822]
[1724064166977,0.1461,58191.0,58188.0,0.000822]
[1724064167189,0.1461,58191.0,58188.0,0.175678]
[1724064167398,0.1461,58191.0,58188.0,0.179678]
[1724064167605,0.1461,58191.0,58188.0,0.176678]
[1724064167991,0.1461,58191.0,58190.0,0.17185]
[1724064168247,0.1461,58191.0,58188.0,0.007822]
[1724064168248,0.0794,58194.0,58188.0,0.007822]
[1724064168453,0.0794,58194.0,58193.0,0.171841]
[1724064168662,0.0794,58194.0,58193.0,0.515524]
[1724064169501,0.0794,58194.0,58192.0,0.171844]
[1724064170125,0.0794,58194.0,58193.0,1.5]
[1724064170967,0.0814,58194.0,58193.0,1.671841]
[1724064171378,0.0834,58194.0,58193.0,1.671841]
[1724064171561,0.0854,58194.0,58193.0,1.671841]
[1724064171803,0.0834,58194.0,58193.0,1.671841]
[1724064172225,0.0854,58194.0,58193.0,1.671841]
[1724064172631,0.0854,58194.0,58193.0,1.5]
[1724064173254,0.0814,58194.0,58193.0,1.5]
[1724064173465,0.0794,58194.0,58193.0,1.5]
[1724064173668,0.0794,58194.0,58193.0,1.504]
[1724064173867,0.0794,58194.0,58193.0,1.507]